fUSD/lending_fUSD_20241227
["ID","MTS","AMOUNT","RATE_DAILY","PERIOD"]
[346784813,1735286992999,-500.0,0.00012657,2]
[346784814,1735286993021,-505.3,0.00012657,2]
[346784815,1735286993045,-892.38,0.00012657,2]
[346784816,1735286993067,-500.0,0.00012657,2]
[346784817,1735286993089,-702.9,0.00012657,2]
[346784818,1735286993111,-500.0,0.00012657,2]
[346784819,1735286993133,-500.0,0.00012657,2]
[346784820,1735286993155,-500.0,0.00012657,2]
[346784821,1735286993181,-500.0,0.00012657,2]
[346784822,1735286993204,-500.0,0.00012657,2]
[346784823,1735286993228,-788.02,0.00012657,2]
[346784824,1735286993252,-599.3,0.00012657,2]
[346784825,1735286993276,-500.0,0.00012657,2]
[346784826,1735286993299,-500.0,0.00012657,2]
[346784827,1735286993323,-500.0,0.00012657,2]
[346784828,1735286993346,-500.0,0.00012657,2]
[346784829,1735286993370,-535.04,0.00012657,2]
[346784830,1735286993393,-500.0,0.00012657,2]
[346784831,1735286993416,-500.0,0.00012657,2]
[346784832,1735286993438,-1416.23,0.00012657,2]
[346784833,1735286993460,-500.0,0.00012657,2]
[346784834,1735286993484,-500.0,0.00012657,2]
[346784835,1735286993508,-500.0,0.00012657,2]
[346784836,1735286993532,-500.0,0.00012657,2]
[346784837,1735286993558,-500.0,0.00012657,2]
[346784838,1735286993582,-500.0,0.00012657,2]
[346784839,1735286993605,-520.02,0.00012657,2]
[346784840,1735286993630,-500.0,0.00012657,2]
[346784841,1735286993654,-500.0,0.00012657,2]
[346784842,1735286993678,-776.07,0.00012657,2]
[346784843,1735286993702,-500.0,0.00012657,2]
[346784844,1735286993726,-1134.61,0.00012657,2]
[346784845,1735286993749,-782.41,0.00012657,2]
[346784846,1735286993773,-500.0,0.00012657,2]
[346784847,1735286993798,-500.0,0.00012657,2]
[346784848,1735286993820,-500.0,0.00012657,2]
[346784849,1735286993845,-2275.59,0.00012657,2]
[346784850,1735286993869,-653.67,0.00012657,2]
[346784851,1735286993892,-1609.8,0.00012657,2]
[346784852,1735286993917,-500.0,0.00012657,2]
[346784853,1735286993941,-648.28,0.00012657,2]
[346784854,1735286993964,-500.0,0.00012657,2]
[346784855,1735286993989,-500.0,0.00012657,2]
[346784856,1735286994012,-1641.5,0.00012657,2]
[346784857,1735286994037,-500.0,0.00012657,2]
[346784858,1735286994061,-500.0,0.00012657,2]
[346784859,1735286994085,-663.31,0.00012657,2]
[346784860,1735286994109,-500.0,0.00012657,2]
[346784861,1735286994133,-500.0,0.00012657,2]
[346784862,1735286994156,-1570.48,0.00012657,2]
[346784863,1735286994183,-500.0,0.00012657,2]
[346784864,1735286994207,-500.0,0.00012657,2]
[346784865,1735286994233,-500.0,0.00012657,2]
[346784866,1735286994260,-500.0,0.00012657,2]
[346784867,1735286994284,-504.95,0.00012657,2]
[346784868,1735286994311,-1093.8,0.00012657,2]
[346784869,1735286994336,-500.0,0.00012657,2]
[346784870,1735286994360,-598.18,0.00012657,2]
[346784871,1735286994386,-500.0,0.00012657,2]
[346784872,1735286994410,-500.0,0.00012657,2]
[346784873,1735286994434,-500.0,0.00012657,2]
[346784874,1735286994459,-500.0,0.00012657,2]
[346784875,1735286994483,-500.0,0.00012657,2]
[346784876,1735286994507,-836.68,0.00012657,2]
[346784877,1735286994532,-500.0,0.00012657,2]
[346784878,1735286994558,-1065.07,0.00012657,2]
[346784879,1735286994581,-500.0,0.00012657,2]
[346784880,1735286994605,-500.0,0.00012657,2]
[346784881,1735286994630,-500.0,0.00012657,2]
[346784882,1735286994654,-778.32,0.00012657,2]
[346784883,1735286994677,-523.06,0.00012657,2]
[346784884,1735286994701,-500.0,0.00012657,2]
[346784885,1735286994725,-500.0,0.00012657,2]
[346784886,1735286994748,-500.0,0.00012657,2]
[346784887,1735286994771,-500.0,0.00012657,2]
[346784888,1735286994795,-966.09,0.00012657,2]
[346784889,1735286994819,-500.0,0.00012657,2]
[346784890,1735286994844,-500.0,0.00012657,2]
[346784891,1735286994868,-500.0,0.00012657,2]
[346784892,1735286994892,-1312.18,0.00012657,2]
[346784893,1735286994917,-500.0,0.00012657,2]
[346784894,1735286994940,-500.0,0.00012657,2]
[346784895,1735286994966,-500.0,0.00012657,2]
[346784896,1735286994991,-500.0,0.00012657,2]
[346784897,1735286995015,-500.0,0.00012657,2]
[346784898,1735286995041,-500.0,0.00012657,2]
[346784899,1735286995065,-500.0,0.00012657,2]
[346784900,1735286995087,-500.0,0.00012657,2]
[346784901,1735286995108,-500.0,0.00012657,2]
[346784902,1735286995132,-500.0,0.00012657,2]
[346784903,1735286995155,-1582.18,0.00012657,2]
[346784904,1735286995182,-500.0,0.00012657,2]
[346784905,1735286995203,-500.0,0.00012657,2]
[346784906,1735286995227,-1161.27,0.00012657,2]
[346784907,1735286995249,-500.0,0.00012657,2]
[346784908,1735286995272,-829.32,0.00012657,2]
[346784909,1735286995296,-500.79885106,0.00012657,2]
[346784910,1735286995318,-808.18,0.00012657,2]
[346784911,1735286995340,-500.0,0.00012657,2]
[346784912,1735286995363,-500.0,0.00012657,2]
[346784913,1735286995385,-500.0,0.00012657,2]
[346784914,1735286995408,-500.0,0.00012657,2]
[346784915,1735286995430,-1773.99,0.00012657,2]
[346784916,1735286995453,-500.0,0.00012657,2]
[346784917,1735286995475,-500.0,0.00012657,2]
[346784918,1735286995498,-500.0,0.00012657,2]
[346784919,1735286995522,-500.0,0.00012657,2]
[346784920,1735286995545,-702.78,0.00012657,2]
[346784921,1735286995567,-504.51266303,0.00012657,2]
[346784922,1735286995590,-500.0,0.00012657,2]
[346784923,1735286995613,-500.0,0.00012657,2]
[346784924,1735286995635,-572.3,0.00012657,2]
[346784925,1735286995657,-500.0,0.00012657,2]
[346784926,1735286995679,-574.76,0.00012657,2]
[346784927,1735286995701,-591.4428307,0.00012657,2]
[346784928,1735286995724,-500.0,0.00012657,2]
[346784929,1735286995746,-500.0,0.00012657,2]
[346784930,1735286995768,-1996.31,0.00012657,2]
[346784931,1735286995790,-501.46357423,0.00012657,2]
[346784932,1735286995815,-500.0,0.00012657,2]
[346784933,1735286995837,-500.0,0.00012657,2]
[346784934,1735286995858,-509.62242365,0.00012657,2]
[346784935,1735286995881,-189.80450358,0.00012657,2]
[346784936,1735286995903,-747.65,0.00012657,2]
[346784937,1735286995926,-500.0,0.00012657,2]
[346784938,1735286995948,-500.0,0.00012657,2]
[346784939,1735286995970,-803.19,0.00012657,2]
[346784940,1735286995991,-500.0,0.00012657,2]
[346784941,1735286996013,-500.0,0.00012657,2]
[346784942,1735286996036,-1915.78,0.00012657,2]
[346784943,1735286996058,-500.0,0.00012657,2]
[346784944,1735286996081,-500.0,0.00012657,2]
[346784945,1735286996106,-805.66,0.00012657,2]
[346784946,1735286996128,-500.0,0.00012657,2]
[346784947,1735286996152,-500.0,0.00012657,2]
[346784948,1735286996181,-500.0,0.00012657,2]
[346784949,1735286996216,-1015.68,0.00012657,2]
[346784950,1735286996239,-501.19352375,0.00012657,2]
[346784951,1735286996261,-605.03,0.00012657,2]
[346784952,1735286996284,-500.0,0.00012657,2]
[346784953,1735286996308,-263.62447774,0.00012657,2]
[346784954,1735286996331,-500.0,0.00012657,2]
[346784955,1735286996353,-500.0,0.00012657,2]
[346784956,1735286996377,-500.0,0.00012657,2]
[346784957,1735286996400,-500.0,0.00012657,2]
[346784958,1735286996425,-500.0,0.00012657,2]
[346784959,1735286996664,-500.0,0.00012657,2]
[346784960,1735286996687,-500.0,0.00012657,2]
[346784961,1735286996710,-500.0,0.00012657,2]
[346784962,1735286996732,-500.0,0.00012657,2]
[346784963,1735286996754,-1021.36,0.00012657,2]
[346784964,1735286996776,-565.57064325,0.00012657,2]
[346784965,1735286996800,-665.58,0.00012657,2]
[346784966,1735286996823,-564.12,0.00012657,2]
[346784967,1735286996846,-500.0,0.00012657,2]
[346784968,1735286996868,-500.0,0.00012657,2]
[346784969,1735286996890,-500.0,0.00012657,2]
[346784970,1735286996913,-500.0,0.00012657,2]
[346784971,1735286996936,-500.0,0.00012657,2]
[346784972,1735286996960,-500.0,0.00012657,2]
[346784973,1735286996982,-500.0,0.00012657,2]
[346784974,1735286997005,-500.0,0.00012657,2]
[346784975,1735286997027,-501.75235562,0.00012657,2]
[346784976,1735286997053,-500.0,0.00012657,2]
[346784977,1735286997075,-500.42446568,0.00012657,2]
[346784978,1735286997097,-500.0,0.00012657,2]
[346784979,1735286997120,-500.0,0.00012657,2]
[346784980,1735286997143,-500.695611,0.00012657,2]
[346784981,1735286997165,-520.69,0.00012657,2]
[346784982,1735286997188,-500.0,0.00012657,2]
[346784983,1735286997211,-1231.48,0.00012657,2]
[346784984,1735286997235,-500.0,0.00012657,2]
[346784985,1735286997261,-500.37784978,0.00012657,2]
[346784986,1735286997284,-500.0,0.00012657,2]
[346784987,1735286997308,-500.0,0.00012657,2]
[346784988,1735286997331,-500.0,0.00012657,2]
[346784989,1735286997353,-500.0,0.00012657,2]
[346784990,1735286997376,-1036.93,0.00012657,2]
[346784991,1735286997399,-167.76378265,0.00012657,2]
[346784992,1735286997422,-500.0,0.00012657,2]
[346784993,1735286997445,-500.0,0.00012657,2]
[346784994,1735286997469,-506.32380574,0.00012657,2]
[346784995,1735286997492,-500.0,0.00012657,2]
[346784996,1735286997515,-500.0,0.00012657,2]
[346784997,1735286997537,-500.0,0.00012657,2]
[346784998,1735286997562,-500.0,0.00012657,2]
[346784999,1735286997585,-1057.08,0.00012657,2]
[346785000,1735286997607,-500.0,0.00012657,2]
[346785001,1735286997629,-500.0,0.00012657,2]
[346785002,1735286997651,-500.0,0.00012657,2]
[346785003,1735286997675,-964.3,0.00012657,2]
[346785004,1735286997697,-183.0292086,0.00012657,2]
[346785005,1735286997719,-500.0,0.00012657,2]
[346785006,1735286997740,-500.0,0.00012657,2]
[346785007,1735286997762,-500.0,0.00012657,2]
[346785008,1735286997783,-511.25,0.00012657,2]
[346785009,1735286997808,-500.0,0.00012657,2]
[346785010,1735286997831,-2481.52,0.00012657,2]
[346785011,1735286997853,-500.0,0.00012657,2]
[346785012,1735286997876,-1590.86,0.00012657,2]
[346785013,1735286997900,-500.0,0.00012657,2]
[346785014,1735286997925,-500.0,0.00012657,2]
[346785015,1735286997949,-500.0,0.00012657,2]
[346785016,1735286997971,-500.0,0.00012657,2]
[346785017,1735286997994,-500.0,0.00012657,2]
[346785018,1735286998017,-783.34,0.00012657,2]
[346785019,1735286998040,-1455.42,0.00012657,2]
[346785020,1735286998064,-500.0,0.00012657,2]
[346785021,1735286998086,-500.0,0.00012657,2]
[346785022,1735286998108,-500.0,0.00012657,2]
[346785023,1735286998130,-500.0,0.00012657,2]
[346785024,1735286998153,-866.08,0.00012657,2]
[346785025,1735286998179,-500.0,0.00012657,2]
[346785026,1735286998202,-500.0,0.00012657,2]
[346785027,1735286998224,-1451.9,0.00012657,2]
[346785028,1735286998247,-500.0,0.00012657,2]
[346785029,1735286998270,-500.0,0.00012657,2]
[346785030,1735286998291,-500.0,0.00012657,2]
[346785031,1735286998314,-697.76,0.00012657,2]
[346785032,1735286998336,-500.0,0.00012657,2]
[346785033,1735286998358,-500.0,0.00012657,2]
[346785034,1735286998381,-533.62858797,0.00012657,2]
[346785035,1735286998403,-855.03,0.00012657,2]
[346785036,1735286998425,-536.47,0.00012657,2]
[346785037,1735286998448,-575.98,0.00012657,2]
[346785038,1735286998470,-2175.99,0.00012657,2]
[346785039,1735286998492,-500.0,0.00012657,2]
[346785040,1735286998514,-2954.38,0.00012657,2]
[346785041,1735286998538,-500.0,0.00012657,2]
[346785042,1735286998561,-500.0,0.00012657,2]
[346785043,1735286998583,-954.14,0.00012657,2]
[346785044,1735286998606,-500.0,0.00012657,2]
[346785045,1735286998627,-500.0,0.00012657,2]
[346785046,1735286998650,-500.0,0.00012657,2]
[346785047,1735286998672,-500.0,0.00012657,2]
[346785048,1735286998693,-500.0,0.00012657,2]
[346785049,1735286998715,-500.0,0.00012657,2]
[346785050,1735286998737,-500.0,0.00012657,2]
[346785051,1735286998759,-500.0,0.00012657,2]
[346785052,1735286998781,-1855.0,0.00012657,2]
[346785053,1735286998804,-2697.35,0.00012657,2]
[346785054,1735286998825,-500.0,0.00012657,2]
[346785055,1735286998848,-500.0,0.00012657,2]
[346785056,1735286998870,-500.0,0.00012657,2]
[346785057,1735286998891,-500.0,0.00012657,2]
[346785058,1735286998913,-500.0,0.00012657,2]
[346785059,1735286998935,-500.0,0.00012657,2]
[346785060,1735286998957,-1267.86,0.00012657,2]
[346785061,1735286998980,-941.46,0.00012657,2]
[346785062,1735286999001,-500.0,0.00012657,2]
[346785063,1735286999023,-4124.16,0.00012657,2]
[346785064,1735286999046,-2897.46,0.00012657,2]
[346785065,1735286999069,-1735.17,0.00012657,2]
[346785066,1735286999090,-500.0,0.00012657,2]
[346785067,1735286999112,-500.0,0.00012657,2]
[346785068,1735286999133,-500.0,0.00012657,2]
[346785069,1735286999155,-503.46959388,0.00012657,2]
[346785070,1735286999179,-1064.65988858,0.00012657,3]
[346785071,1735286999203,-1162.03,0.00012657,2]
[346785072,1735286999225,-500.0,0.00012657,2]
[346785073,1735286999247,-500.0,0.00012657,2]
[346785074,1735286999275,-500.0,0.00012657,2]
[346785075,1735286999299,-500.0,0.00012657,2]
[346785076,1735286999321,-881.41,0.00012657,2]
[346785077,1735286999343,-500.0,0.00012657,2]
[346785078,1735286999364,-500.0,0.00012657,2]
[346785079,1735286999386,-734.39,0.00012657,2]
[346785080,1735286999408,-500.0,0.00012657,2]
[346785081,1735286999431,-647.24,0.00012657,2]
[346785082,1735286999453,-500.0,0.00012657,2]
[346785083,1735286999476,-504.48688661,0.00012657,2]
[346785084,1735286999498,-500.0,0.00012657,2]
[346785085,1735286999521,-500.0,0.00012657,2]
[346785086,1735286999544,-3159.22,0.00012657,2]
[346785087,1735286999568,-500.0,0.00012657,2]
[346785088,1735286999590,-500.0,0.00012657,2]
[346785089,1735286999613,-1075.45,0.00012657,2]
[346785090,1735286999634,-500.0,0.00012657,2]
[346785091,1735286999657,-500.0,0.00012657,2]
[346785092,1735286999678,-1805.86,0.00012657,2]
[346785093,1735286999701,-716.01,0.00012657,2]
[346785094,1735286999726,-1002.67,0.00012657,2]
[346785095,1735286999748,-500.0,0.00012657,2]
[346785096,1735286999771,-500.0,0.00012657,2]
[346785097,1735286999793,-500.0,0.00012657,2]
[346785098,1735286999816,-500.0,0.00012657,2]
[346785099,1735286999839,-2739.11,0.00012657,2]
[346785100,1735286999861,-520.08,0.00012657,2]
[346785101,1735286999883,-500.0,0.00012657,2]
[346785102,1735286999908,-500.0,0.00012657,2]
[346785103,1735286999932,-500.0,0.00012657,2]
[346785104,1735286999955,-500.0,0.00012657,2]
[346785105,1735286999976,-248.76275087,0.00012657,2]
[346785106,1735286999998,-1000.57,0.00012657,2]
[346785107,1735287000022,-500.0,0.00012657,2]
[346785108,1735287000045,-498.61658974,0.00012657,2]
[346785109,1735287000071,-500.0,0.00012657,2]
[346785110,1735287000095,-500.0,0.00012657,2]
[346785111,1735287000118,-500.0,0.00012657,2]
[346785112,1735287000142,-1558.49,0.00012657,2]
[346785113,1735287000166,-948.25,0.00012657,2]
[346785114,1735287000195,-500.99473172,0.00012657,2]
[346785115,1735287000219,-1129.92,0.00012657,2]
[346785116,1735287000241,-162.29170884,0.00012657,2]
[346785117,1735287000266,-788.34,0.00012657,2]
[346785118,1735287000288,-500.0,0.00012657,2]
[346785119,1735287000313,-500.0,0.00012657,2]
[346785120,1735287000335,-500.0,0.00012657,2]
[346785121,1735287000358,-500.0,0.00012657,2]
[346785122,1735287000380,-500.0,0.00012657,2]
[346785123,1735287000403,-500.0,0.00012657,2]
[346785124,1735287000428,-928.41,0.00012657,2]
[346785125,1735287000452,-500.0,0.00012657,2]
[346785126,1735287000474,-500.0,0.00012657,2]
[346785128,1735287000497,-500.0,0.00012657,2]
[346785130,1735287000518,-1087.55,0.00012657,2]
[346785132,1735287000542,-500.0,0.00012657,2]
[346785134,1735287000566,-2572.77,0.00012657,2]
[346785136,1735287000589,-500.0,0.00012657,2]
[346785137,1735287000611,-500.0,0.00012657,2]
[346785139,1735287000632,-835.22,0.00012657,2]
[346785140,1735287000655,-502.32,0.00012657,2]
[346785141,1735287000677,-500.0,0.00012657,2]
[346785142,1735287000698,-389.11306022,0.00012657,2]
[346785143,1735287000721,-500.0,0.00012657,2]
[346785144,1735287000743,-500.0,0.00012657,2]
[346785145,1735287000765,-500.0,0.00012657,2]
[346785146,1735287000994,-500.0,0.00012657,2]
[346785147,1735287001017,-2003.08,0.00012657,2]
[346785148,1735287001040,-500.0,0.00012657,2]
[346785149,1735287001065,-1294.43,0.00012657,2]
[346785150,1735287001086,-186.31940413,0.00012657,2]
[346785151,1735287001109,-272.544328,0.00012657,2]
[346785152,1735287001132,-500.0,0.00012657,2]
[346785153,1735287001157,-500.0,0.00012657,2]
[346785154,1735287001180,-500.0,0.00012657,2]
[346785155,1735287001202,-570.45,0.00012657,2]
[346785156,1735287001225,-500.0,0.00012657,2]
[346785157,1735287001248,-500.0,0.00012657,2]
[346785158,1735287001274,-18376.58,0.00012657,2]
[346785159,1735287001297,-500.0,0.00012657,2]
[346785160,1735287001323,-500.0,0.00012657,2]
[346785161,1735287001347,-500.0,0.00012657,2]
[346785162,1735287001372,-500.0,0.00012657,2]
[346785163,1735287001395,-1401.95,0.00012657,2]
[346785164,1735287001418,-514.44,0.00012657,2]
[346785165,1735287001442,-500.0,0.00012657,2]
[346785166,1735287001465,-500.0,0.00012657,2]
[346785167,1735287001488,-500.0,0.00012657,2]
[346785168,1735287001511,-563.16,0.00012657,2]
[346785169,1735287001534,-500.0,0.00012657,2]
[346785170,1735287001560,-500.0,0.00012657,2]
[346785171,1735287001583,-509.56913241,0.00012657,2]
[346785172,1735287001605,-500.0,0.00012657,2]
[346785173,1735287001627,-500.0,0.00012657,2]
[346785174,1735287001650,-500.0,0.00012657,2]
[346785175,1735287001673,-1988.97,0.00012657,2]
[346785176,1735287001694,-500.0,0.00012657,2]
[346785177,1735287001716,-501.16516623,0.00012657,2]
[346785178,1735287001738,-500.0,0.00012657,2]
[346785179,1735287001760,-502.80149315,0.00012657,2]
[346785180,1735287001782,-500.0,0.00012657,2]
[346785181,1735287001805,-500.0,0.00012657,2]
[346785182,1735287001828,-500.0,0.00012657,2]
[346785183,1735287001852,-508.21940173,0.00012657,2]
[346785184,1735287001875,-500.0,0.00012657,2]
[346785185,1735287001899,-500.0,0.00012657,2]
[346785186,1735287001924,-3581.42,0.00012657,2]
[346785188,1735287001947,-2663.71,0.00012657,2]
[346785189,1735287001971,-500.0,0.00012657,2]
[346785190,1735287001995,-1777.42,0.00012657,2]
[346785191,1735287002018,-500.0,0.00012657,2]
[346785192,1735287002040,-507.92380145,0.00012657,2]
[346785193,1735287002064,-500.0,0.00012657,2]
[346785194,1735287002088,-18908.41,0.00012657,2]
[346785195,1735287002111,-578.29,0.00012657,2]
[346785196,1735287002133,-1191.88,0.00012657,2]
[346785197,1735287002156,-1496.17,0.00012657,2]
[346785198,1735287002180,-500.0,0.00012657,2]
[346785199,1735287002203,-500.0,0.00012657,2]
[346785200,1735287002226,-500.0,0.00012657,2]
[346785201,1735287002249,-502.6809562,0.00012657,2]
[346785202,1735287002275,-500.0,0.00012657,2]
[346785203,1735287002299,-500.0,0.00012657,2]
[346785204,1735287002327,-500.0,0.00012657,2]
[346785205,1735287002351,-755.3,0.00012657,2]
[346785206,1735287002375,-500.0,0.00012657,2]
[346785207,1735287002398,-588.75,0.00012657,2]
[346785208,1735287002421,-500.0,0.00012657,2]
[346785209,1735287002447,-500.0,0.00012657,2]
[346785210,1735287002472,-500.0,0.00012657,2]
[346785211,1735287002496,-500.0,0.00012657,2]
[346785212,1735287002519,-507.87972403,0.00012657,2]
[346785213,1735287002542,-500.0,0.00012657,2]
[346785214,1735287002566,-500.0,0.00012657,2]
[346785215,1735287002588,-500.0,0.00012657,2]
[346785216,1735287002611,-500.0,0.00012657,2]
[346785217,1735287002633,-500.0,0.00012657,2]
[346785218,1735287002656,-758.87,0.00012657,2]
[346785219,1735287002679,-500.0,0.00012657,2]
[346785220,1735287002701,-12440.75,0.00012657,2]
[346785221,1735287002723,-504.87401648,0.00012657,2]
[346785222,1735287002745,-500.0,0.00012657,2]
[346785223,1735287002768,-500.0,0.00012657,2]
[346785224,1735287002791,-500.0,0.00012657,2]
[346785225,1735287002816,-500.0,0.00012657,2]
[346785226,1735287002840,-501.77674655,0.00012657,2]
[346785227,1735287002864,-500.0,0.00012657,2]
[346785228,1735287002886,-500.0,0.00012657,2]
[346785229,1735287002910,-500.0,0.00012657,2]
[346785230,1735287002932,-500.0,0.00012657,2]
[346785231,1735287002957,-500.0,0.00012657,2]
[346785232,1735287002980,-553.29,0.00012657,2]
[346785233,1735287003002,-500.0,0.00012657,2]
[346785234,1735287003037,-500.0,0.00012657,2]
[346785235,1735287003065,-535.4,0.00012657,2]
[346785236,1735287003090,-500.0,0.00012657,2]
[346785237,1735287003114,-689.14,0.00012657,2]
[346785238,1735287003138,-1112.44,0.00012657,2]
[346785239,1735287003163,-500.0,0.00012657,2]
[346785240,1735287003189,-500.0,0.00012657,2]
[346785241,1735287003213,-500.0,0.00012657,2]
[346785242,1735287003239,-513.88,0.00012657,2]
[346785243,1735287003264,-500.0,0.00012657,2]
[346785244,1735287003291,-500.0,0.00012657,2]
[346785245,1735287003319,-506.50695353,0.00012657,2]
[346785246,1735287003346,-1484.8,0.00012657,2]
[346785247,1735287003373,-837.12,0.00012657,2]
[346785248,1735287003402,-1614.03,0.00012657,2]
[346785249,1735287003430,-500.0,0.00012657,2]
[346785250,1735287003460,-500.0,0.00012657,2]
[346785251,1735287003488,-295.92418246,0.00012657,2]
[346785252,1735287003514,-500.0,0.00012657,2]
[346785253,1735287003541,-500.0,0.00012657,2]
[346785254,1735287003571,-500.0,0.00012657,2]
[346785255,1735287003598,-954.81,0.00012657,2]
[346785256,1735287003624,-500.0,0.00012657,2]
[346785257,1735287003671,-578.84,0.00012657,2]
[346785258,1735287003697,-500.0,0.00012657,2]
[346785259,1735287003722,-500.0,0.00012657,2]
[346785260,1735287003746,-922.61,0.00012657,2]
[346785261,1735287003770,-716.96,0.00012657,2]
[346785262,1735287003794,-167.83551788,0.00012657,2]
[346785263,1735287003821,-500.0,0.00012657,2]
[346785264,1735287003845,-500.0,0.00012657,2]
[346785265,1735287003869,-500.0,0.00012658,2]
[346785266,1735287003900,-500.0,0.00012658,2]
[346785267,1735287003934,-500.0,0.00012658,2]
[346785268,1735287003967,-500.0,0.00012658,2]
[346785269,1735287004001,-501.97695204,0.00012658,2]
[346785270,1735287004033,-500.0,0.00012658,2]
[346785271,1735287004067,-500.0,0.00012658,2]
[346785272,1735287004097,-500.0,0.00012658,2]
[346785273,1735287004132,-500.0,0.00012658,2]
[346785274,1735287004165,-500.0,0.00012658,2]
[346785275,1735287004199,-500.0,0.00012658,2]
[346785276,1735287004232,-775.36,0.00012658,2]
[346785277,1735287004266,-500.0,0.00012658,2]
[346785278,1735287004299,-500.0,0.00012658,2]
[346785279,1735287004333,-500.0,0.00012658,2]
[346785280,1735287004373,-500.0,0.00012658,2]
[346785281,1735287004406,-500.0,0.00012658,2]
[346785282,1735287004435,-500.0,0.00012658,2]
[346785283,1735287004468,-500.0,0.00012658,2]
[346785284,1735287004500,-500.0,0.00012658,2]
[346785285,1735287004529,-500.0,0.00012658,2]
[346785286,1735287004564,-517.59,0.00012658,2]
[346785287,1735287004593,-500.0,0.00012658,2]
[346785288,1735287004625,-500.0,0.00012658,2]
[346785289,1735287004675,-642.2,0.00012658,2]
[346785290,1735287004717,-500.0,0.00012658,2]
[346785291,1735287004747,-500.0,0.00012658,2]
[346785292,1735287004776,-500.0,0.00012658,2]
[346785293,1735287004808,-500.0,0.00012658,2]
[346785294,1735287004856,-500.0,0.00012658,2]
[346785295,1735287004906,-500.0,0.00012658,2]
[346785296,1735287004962,-500.0,0.00012658,2]
[346785297,1735287005003,-500.0,0.00012658,2]
[346785298,1735287005049,-500.0,0.00012658,2]
[346785299,1735287005093,-500.0,0.00012658,2]
[346785300,1735287005139,-500.0,0.00012658,2]
[346785301,1735287005169,-500.0,0.00012658,2]
[346785302,1735287005201,-500.0,0.00012658,2]
[346785303,1735287005231,-500.0,0.00012658,2]
[346785304,1735287005260,-500.0,0.00012658,2]
[346785305,1735287005289,-500.0,0.00012658,2]
[346785306,1735287005323,-690.44,0.00012658,2]
[346785307,1735287005352,-612.88,0.00012658,2]
[346785308,1735287005380,-500.0,0.00012658,2]
[346785309,1735287005409,-520.66,0.00012658,2]
[346785310,1735287005437,-500.0,0.00012658,2]
[346785311,1735287005468,-500.0,0.00012658,2]
[346785312,1735287005498,-500.0,0.00012658,2]
[346785313,1735287005528,-500.0,0.00012658,2]
[346785314,1735287005561,-500.0,0.00012658,2]
[346785315,1735287005592,-500.0,0.00012658,2]
[346785316,1735287005622,-500.0,0.00012658,2]
[346785317,1735287005652,-500.0,0.00012658,2]
[346785318,1735287005680,-500.0,0.00012658,2]
[346785319,1735287005708,-500.0,0.00012658,2]